fUST/lending_fUST_20250718
["ID","MTS","AMOUNT","RATE_DAILY","PERIOD"]
[372932605,1752813048075,-777.35,0.00016986,2]
[372932606,1752813048084,-558.88,0.00016986,2]
[372932607,1752813048093,-460.0,0.00016986,2]
[372932608,1752813048103,-460.0,0.00016986,2]
[372932609,1752813048113,-460.0,0.00016986,2]
[372932610,1752813048122,-460.0,0.00016986,2]
[372932611,1752813048131,-460.0,0.00016986,2]
[372932612,1752813048141,-460.0,0.00016986,2]
[372932613,1752813048151,-460.0,0.00016986,2]
[372932614,1752813048160,-460.0,0.00016986,2]
[372932615,1752813048170,-460.0,0.00016986,2]
[372932616,1752813048180,-460.0,0.00016986,2]
[372932617,1752813048190,-460.0,0.00016986,2]
[372932618,1752813048200,-460.0,0.00016986,2]
[372932619,1752813048210,-460.0,0.00016986,2]
[372932620,1752813048219,-460.0,0.00016986,2]
[372932621,1752813048229,-460.0,0.00016986,2]
[372932622,1752813048238,-460.0,0.00016986,2]
[372932623,1752813048248,-460.0,0.00016986,2]
[372932624,1752813048258,-460.0,0.00016986,2]
[372932625,1752813048267,-460.0,0.00016986,2]
[372932626,1752813048276,-460.0,0.00016986,2]
[372932627,1752813048286,-460.0,0.00016986,2]
[372932628,1752813048295,-460.0,0.00016986,2]
[372932629,1752813048305,-460.0,0.00016986,2]
[372932630,1752813048314,-460.0,0.00016986,2]
[372932631,1752813048324,-787.34,0.00016986,2]
[372932632,1752813048334,-460.0,0.00016986,2]
[372932633,1752813048344,-460.0,0.00016986,2]
[372932634,1752813048354,-460.0,0.00016986,2]
[372932635,1752813048363,-1702.85,0.00016986,2]
[372932636,1752813048373,-460.0,0.00016986,2]
[372932637,1752813048383,-460.0,0.00016986,2]
[372932638,1752813048392,-460.0,0.00016986,2]
[372932639,1752813048402,-460.0,0.00016986,2]
[372932640,1752813048415,-250.57475707,0.00016986,2]
[372932641,1752813048425,-547.71,0.00016986,2]
[372932642,1752813048435,-555.77,0.00016986,2]
[372932643,1752813048446,-151.47236322,0.00016986,2]
[372932644,1752813048458,-460.0,0.00016986,2]
[372932645,1752813048468,-460.0,0.00016986,2]
[372932646,1752813048477,-460.0,0.00016986,2]
[372932647,1752813048487,-460.0,0.00016986,2]
[372932648,1752813048496,-460.0,0.00016986,2]
[372932649,1752813048506,-460.0,0.00016986,2]
[372932650,1752813048515,-535.54,0.00016986,2]
[372932651,1752813048525,-460.0,0.00016986,2]
[372932652,1752813048534,-460.0,0.00016986,2]
[372932653,1752813048544,-460.0,0.00016986,2]
[372932654,1752813048553,-460.0,0.00016986,2]
[372932655,1752813048562,-1010.83,0.00016986,2]
[372932656,1752813048571,-460.0,0.00016986,2]
[372932657,1752813048581,-460.0,0.00016986,2]
[372932658,1752813048590,-460.0,0.00016986,2]
[372932659,1752813048600,-460.0,0.00016986,2]
[372932660,1752813048609,-460.0,0.00016986,2]
[372932661,1752813048619,-560.37,0.00016986,2]
[372932662,1752813048628,-460.0,0.00016986,2]
[372932663,1752813048638,-460.0,0.00016986,2]
[372932664,1752813048647,-460.0,0.00016986,2]
[372932665,1752813048657,-2738.5,0.00016986,2]
[372932666,1752813048666,-460.0,0.00016986,2]
[372932667,1752813048676,-460.0,0.00016986,2]
[372932668,1752813048685,-460.0,0.00016986,2]
[372932669,1752813048695,-460.0,0.00016986,2]
[372932670,1752813048705,-460.0,0.00016986,2]
[372932671,1752813048715,-460.0,0.00016986,2]
[372932672,1752813048724,-525.79,0.00016986,2]
[372932673,1752813048880,-460.0,0.00016986,2]
[372932674,1752813048890,-536.66,0.00016986,2]
[372932675,1752813048900,-460.0,0.00016986,2]
[372932676,1752813048909,-460.0,0.00016986,2]
[372932677,1752813048919,-2535.91,0.00016986,2]
[372932678,1752813048928,-465.40802677,0.00016986,2]
[372932679,1752813048938,-460.0,0.00016986,2]
[372932680,1752813048947,-460.0,0.00016986,2]
[372932681,1752813048957,-3286.51,0.00016986,2]
[372932682,1752813048967,-513.61,0.00016986,2]
[372932683,1752813048977,-507.50111072,0.00016986,2]
[372932684,1752813048987,-479.16,0.00016986,2]
[372932685,1752813048997,-460.0,0.00016986,2]
[372932686,1752813049007,-852.12,0.00016986,2]
[372932687,1752813049017,-460.0,0.00016986,2]
[372932688,1752813049027,-1073.62,0.00016986,2]
[372932689,1752813049037,-460.0,0.00016986,2]
[372932690,1752813049047,-460.0,0.00016986,2]
[372932691,1752813049057,-1477.28,0.00016986,2]
[372932692,1752813049066,-269.22380459,0.00016986,2]
[372932693,1752813049076,-774.58,0.00016986,2]
[372932694,1752813049085,-460.0,0.00016986,2]
[372932695,1752813049095,-460.0,0.00016986,2]
[372932696,1752813049104,-460.0,0.00016986,2]
[372932697,1752813049114,-638.51,0.00016986,2]
[372932698,1752813049125,-571.08,0.00016986,2]
[372932699,1752813049135,-1916.82,0.00016986,2]
[372932700,1752813049145,-460.0,0.00016986,2]
[372932701,1752813049155,-1136.96,0.00016986,2]
[372932702,1752813049165,-460.0,0.00016986,2]
[372932703,1752813049175,-460.0,0.00016986,2]
[372932704,1752813049184,-460.0,0.00016986,2]
[372932705,1752813049194,-460.0,0.00016986,2]
[372932706,1752813049204,-646.05,0.00016986,2]
[372932707,1752813049213,-460.0,0.00016986,2]
[372932708,1752813049223,-460.0,0.00016986,2]
[372932709,1752813049232,-690.82,0.00016986,2]
[372932710,1752813049242,-460.0,0.00016986,2]
[372932711,1752813049252,-460.0,0.00016986,2]
[372932712,1752813049262,-2756.34,0.00016986,2]
[372932713,1752813049271,-460.0,0.00016986,2]
[372932714,1752813049281,-460.0,0.00016986,2]
[372932715,1752813049290,-460.0,0.00016986,2]
[372932716,1752813049300,-460.0,0.00016986,2]
[372932717,1752813049315,-1040.86,0.00016986,2]
[372932718,1752813049325,-460.0,0.00016986,2]
[372932719,1752813049334,-460.0,0.00016986,2]
[372932720,1752813049344,-460.0,0.00016986,2]
[372932721,1752813049354,-467.14,0.00016986,2]
[372932722,1752813049364,-460.0,0.00016986,2]
[372932723,1752813049374,-4760.88,0.00016986,2]
[372932724,1752813049383,-472.26,0.00016986,2]
[372932725,1752813049393,-460.0,0.00016986,2]
[372932726,1752813049404,-460.0,0.00016986,2]
[372932727,1752813049417,-570.06,0.00016986,2]
[372932728,1752813049427,-4406.26,0.00016986,2]
[372932729,1752813049437,-508.35,0.00016986,2]
[372932730,1752813049449,-472.91,0.00016986,2]
[372932731,1752813049460,-460.0,0.00016986,2]
[372932732,1752813049470,-460.0,0.00016986,2]
[372932733,1752813049480,-856.08,0.00016986,2]
[372932734,1752813049490,-487.92,0.00016986,2]
[372932735,1752813049501,-460.0,0.00016986,2]
[372932736,1752813049511,-460.0,0.00016986,2]
[372932737,1752813049520,-460.0,0.00016986,2]
[372932738,1752813049531,-1340.97,0.00016986,2]
[372932739,1752813049541,-582.41,0.00016986,2]
[372932740,1752813049550,-460.0,0.00016986,2]
[372932741,1752813049560,-2433.29,0.00016986,2]
[372932742,1752813049569,-1705.16,0.00016986,2]
[372932743,1752813049578,-460.0,0.00016986,2]
[372932744,1752813049588,-460.0,0.00016986,2]
[372932745,1752813049597,-460.0,0.00016986,2]
[372932746,1752813049608,-460.0,0.00016986,2]
[372932747,1752813049617,-1722.56,0.00016986,2]
[372932748,1752813049627,-460.0,0.00016986,2]
[372932749,1752813049636,-460.0,0.00016986,2]
[372932750,1752813049646,-460.0,0.00016986,2]
[372932751,1752813049655,-415.8619528,0.00016986,2]
[372932752,1752813049665,-460.0,0.00016986,2]
[372932753,1752813049674,-460.0,0.00016986,2]
[372932754,1752813049684,-460.0,0.00016986,2]
[372932755,1752813049698,-460.0,0.00016986,2]
[372932756,1752813049708,-460.0,0.00016986,2]
[372932757,1752813049718,-2489.82,0.00016986,2]
[372932758,1752813049728,-505.66,0.00016986,2]
[372932759,1752813049737,-2945.34,0.00016986,2]
[372932760,1752813049747,-460.0,0.00016986,2]
[372932761,1752813049756,-460.0,0.00016986,2]
[372932762,1752813049766,-460.0,0.00016986,2]
[372932763,1752813049775,-460.0,0.00016986,2]
[372932764,1752813049785,-633.48,0.00016986,2]
[372932765,1752813049794,-460.0,0.00016986,2]
[372932766,1752813049804,-460.0,0.00016986,2]
[372932767,1752813049813,-538.09335814,0.00016986,2]
[372932768,1752813049823,-500.0,0.00017021,2]
[372932769,1752813049833,-500.0,0.00017021,2]
[372932770,1752813049843,-1000.0,0.00017021,2]
[372932771,1752813049853,-975.62086787,0.00017021,2]
[372932772,1752813049863,-1000.0,0.00017021,2]
[372932773,1752813049872,-680.07601105,0.00017021,2]
[372932774,1752813049882,-378.0,0.00017077,2]
[372932775,1752813049892,-464.93120888,0.0001726,2]
[372932776,1752813049901,-253.76368068,0.0001726,2]
[372932777,1752813049911,-460.0,0.0001726,2]
[372932778,1752813049920,-460.0,0.0001726,2]
[372932779,1752813049930,-452.64071847,0.0001726,2]
[372932780,1752813049943,-460.0,0.0001726,2]
[372932781,1752813049953,-460.0,0.0001726,2]
[372932782,1752813049963,-460.0,0.0001726,2]
[372932783,1752813049972,-460.0,0.0001726,2]
[372932784,1752813049982,-460.0,0.0001726,2]
[372932785,1752813049992,-460.0,0.0001726,2]
[372932786,1752813050001,-406.77310096,0.0001726,2]
[372932787,1752813050011,-196.14196305,0.0001726,2]
[372932788,1752813050020,-460.0,0.0001726,2]
[372932789,1752813050030,-460.0,0.0001726,2]
[372932790,1752813050039,-460.0,0.0001726,2]
[372932791,1752813050048,-460.0,0.0001726,2]
[372932792,1752813050058,-513.5,0.0001726,2]
[372932793,1752813050068,-329.80564053,0.0001726,2]
[372932794,1752813050078,-567.04,0.0001726,2]
[372932795,1752813050087,-548.81322495,0.0001726,2]
[372932796,1752813050096,-460.0,0.0001726,2]
[372932797,1752813050106,-460.0,0.0001726,2]
[372932798,1752813050115,-460.0,0.0001726,2]
[372932799,1752813050124,-460.0,0.0001726,2]
[372932800,1752813050133,-209.42030284,0.0001726,2]
[372932801,1752813050143,-460.0,0.0001726,2]
[372932802,1752813050152,-460.0,0.0001726,2]
[372932803,1752813050161,-460.0,0.0001726,2]
[372932804,1752813050171,-460.0,0.0001726,2]
[372932805,1752813050180,-460.0,0.0001726,2]
[372932806,1752813050189,-460.0,0.0001726,2]
[372932807,1752813050201,-460.0,0.0001726,2]
[372932808,1752813050211,-460.0,0.0001726,2]
[372932809,1752813050220,-777.35,0.0001726,2]
[372932810,1752813050228,-558.88,0.0001726,2]
[372932811,1752813050237,-460.0,0.0001726,2]
[372932812,1752813050246,-460.0,0.0001726,2]
[372932813,1752813050255,-464.59996147,0.0001726,2]
[372932814,1752813050263,-595.28440608,0.0001726,2]
[372932815,1752813050272,-460.0,0.0001726,2]
[372932816,1752813050281,-460.0,0.0001726,2]
[372932817,1752813050289,-460.0,0.0001726,2]
[372932818,1752813050298,-460.0,0.0001726,2]
[372932819,1752813050306,-460.0,0.0001726,2]
[372932820,1752813050315,-460.0,0.0001726,2]
[372932821,1752813050324,-460.0,0.0001726,2]
[372932822,1752813050333,-579.69590009,0.0001726,2]
[372932823,1752813050341,-460.0,0.0001726,2]
[372932824,1752813050350,-460.0,0.0001726,2]
[372932825,1752813050358,-460.0,0.0001726,2]
[372932826,1752813050367,-460.0,0.0001726,2]
[372932827,1752813050375,-279.23132461,0.0001726,2]
[372932828,1752813050384,-460.0,0.0001726,2]
[372932829,1752813050393,-460.0,0.0001726,2]
[372932830,1752813050402,-460.0,0.0001726,2]
[372932831,1752813050411,-460.0,0.0001726,2]
[372932832,1752813050421,-787.34,0.0001726,2]
[372932833,1752813050430,-460.0,0.0001726,2]
[372932834,1752813050438,-460.0,0.0001726,2]
[372932835,1752813050449,-460.0,0.0001726,2]
[372932836,1752813050458,-1702.85,0.0001726,2]
[372932837,1752813050468,-460.0,0.0001726,2]
[372932838,1752813050477,-460.0,0.0001726,2]
[372932839,1752813050487,-460.0,0.0001726,2]
[372932840,1752813050496,-547.71,0.0001726,2]
[372932841,1752813050506,-555.77,0.0001726,2]
[372932842,1752813050514,-460.0,0.0001726,2]
[372932843,1752813050523,-460.0,0.0001726,2]
[372932844,1752813050532,-460.0,0.0001726,2]
[372932845,1752813050541,-460.0,0.0001726,2]
[372932846,1752813050550,-460.0,0.0001726,2]
[372932847,1752813050560,-535.54,0.0001726,2]
[372932848,1752813050569,-460.0,0.0001726,2]
[372932849,1752813050578,-460.0,0.0001726,2]
[372932850,1752813050588,-460.0,0.0001726,2]
[372932851,1752813050597,-1010.83,0.0001726,2]
[372932852,1752813050607,-460.0,0.0001726,2]
[372932853,1752813050616,-460.0,0.0001726,2]
[372932854,1752813050625,-460.0,0.0001726,2]
[372932855,1752813050635,-460.0,0.0001726,2]
[372932856,1752813050643,-460.0,0.0001726,2]
[372932857,1752813050652,-560.37,0.0001726,2]
[372932858,1752813050660,-460.0,0.0001726,2]
[372932859,1752813050668,-460.0,0.0001726,2]
[372932860,1752813050677,-460.0,0.0001726,2]
[372932861,1752813050685,-2738.5,0.0001726,2]
[372932862,1752813050695,-460.0,0.0001726,2]
[372932863,1752813050703,-460.0,0.0001726,2]
[372932864,1752813050712,-464.04476148,0.0001726,2]
[372932865,1752813050721,-460.0,0.0001726,2]
[372932866,1752813050731,-304.26755247,0.0001726,2]
[372932867,1752813050740,-460.0,0.0001726,2]
[372932868,1752813050749,-525.79,0.0001726,2]
[372932869,1752813050759,-460.0,0.0001726,2]
[372932870,1752813050769,-536.66,0.0001726,2]
[372932871,1752813050778,-460.0,0.0001726,2]
[372932872,1752813050787,-2535.91,0.0001726,2]
[372932873,1752813050953,-460.0,0.0001726,2]
[372932874,1752813050963,-3286.51,0.0001726,2]
[372932875,1752813050973,-513.61,0.0001726,2]
[372932876,1752813050981,-479.16,0.0001726,2]
[372932877,1752813050990,-460.0,0.0001726,2]
[372932878,1752813050999,-852.12,0.0001726,2]
[372932879,1752813051007,-464.00080529,0.0001726,2]
[372932880,1752813051016,-1073.62,0.0001726,2]
[372932881,1752813051025,-465.03186411,0.0001726,2]
[372932882,1752813051034,-460.0,0.0001726,2]
[372932883,1752813051043,-1477.28,0.0001726,2]
[372932884,1752813051053,-774.58,0.0001726,2]
[372932885,1752813051063,-460.0,0.0001726,2]
[372932886,1752813051072,-460.0,0.0001726,2]
[372932887,1752813051082,-460.0,0.0001726,2]
[372932888,1752813051091,-638.51,0.0001726,2]
[372932889,1752813051100,-571.08,0.0001726,2]
[372932890,1752813051110,-1916.82,0.0001726,2]
[372932891,1752813051119,-460.0,0.0001726,2]
[372932892,1752813051128,-1136.96,0.0001726,2]
[372932893,1752813051138,-460.0,0.0001726,2]
[372932894,1752813051147,-460.0,0.0001726,2]
[372932895,1752813051157,-460.0,0.0001726,2]
[372932896,1752813051166,-460.0,0.0001726,2]
[372932897,1752813051176,-646.05,0.0001726,2]
[372932898,1752813051186,-460.0,0.0001726,2]
[372932899,1752813051197,-460.0,0.0001726,2]
[372932900,1752813051207,-690.82,0.0001726,2]
[372932901,1752813051216,-460.0,0.0001726,2]
[372932902,1752813051226,-460.0,0.0001726,2]
[372932903,1752813051236,-460.0,0.0001726,2]
[372932904,1752813051246,-2756.34,0.0001726,2]
[372932905,1752813051255,-306.01395592,0.0001726,2]
[372932906,1752813051265,-460.0,0.0001726,2]
[372932907,1752813051275,-1040.86,0.0001726,2]
[372932908,1752813051284,-460.0,0.0001726,2]
[372932909,1752813051294,-460.0,0.0001726,2]
[372932910,1752813051303,-460.0,0.0001726,2]
[372932911,1752813051312,-460.0,0.0001726,2]
[372932912,1752813051322,-467.14,0.0001726,2]
[372932913,1752813051332,-460.0,0.0001726,2]
[372932914,1752813051341,-4760.88,0.0001726,2]
[372932915,1752813051350,-472.26,0.0001726,2]
[372932916,1752813051359,-460.0,0.0001726,2]
[372932917,1752813051369,-460.0,0.0001726,2]
[372932918,1752813051379,-570.06,0.0001726,2]
[372932919,1752813051388,-4406.26,0.0001726,2]
[372932920,1752813051397,-508.35,0.0001726,2]
[372932921,1752813051407,-472.91,0.0001726,2]
[372932922,1752813051420,-460.0,0.0001726,2]
[372932923,1752813051429,-460.0,0.0001726,2]
[372932924,1752813051439,-856.08,0.0001726,2]
[372932925,1752813051450,-487.92,0.0001726,2]
[372932926,1752813051461,-460.0,0.0001726,2]
[372932927,1752813051470,-460.0,0.0001726,2]
[372932928,1752813051480,-460.0,0.0001726,2]
[372932929,1752813051491,-1340.97,0.0001726,2]
[372932930,1752813051500,-582.41,0.0001726,2]
[372932931,1752813051510,-317.75482416,0.0001726,2]
[372932932,1752813051519,-2433.29,0.0001726,2]
[372932933,1752813051528,-1705.16,0.0001726,2]
[372932934,1752813051537,-460.0,0.0001726,2]
[372932935,1752813051547,-460.0,0.0001726,2]
[372932936,1752813051557,-1722.56,0.0001726,2]
[372932937,1752813051566,-460.0,0.0001726,2]
[372932938,1752813051576,-465.13418068,0.0001726,2]
[372932939,1752813051585,-460.0,0.0001726,2]
[372932940,1752813051595,-591.12583341,0.0001726,2]
[372932941,1752813051604,-460.0,0.0001726,2]
[372932942,1752813051614,-460.0,0.0001726,2]
[372932943,1752813051623,-460.0,0.0001726,2]
[372932944,1752813051633,-460.0,0.0001726,2]
[372932945,1752813051642,-460.0,0.0001726,2]
[372932946,1752813051651,-2489.82,0.0001726,2]
[372932947,1752813051660,-505.66,0.0001726,2]
[372932948,1752813051670,-2945.34,0.0001726,2]
[372932949,1752813051680,-460.0,0.0001726,2]
[372932950,1752813051689,-460.0,0.0001726,2]
[372932951,1752813051699,-485.95746534,0.0001726,2]
[372932952,1752813051709,-460.0,0.0001726,2]
[372932953,1752813051719,-633.48,0.0001726,2]
[372932954,1752813051728,-460.0,0.0001726,2]
[372932955,1752813051738,-460.0,0.0001726,2]
[372932956,1752813051747,-1000.0,0.00017321,2]
[372932957,1752813051757,-1000.0,0.00017321,2]
[372932958,1752813051766,-500.0,0.00017321,2]
[372932959,1752813051775,-1000.0,0.00017321,2]
[372932960,1752813051784,-1002.71379163,0.00017521,2]
[372932961,1752813051794,-460.0,0.00017534,2]
[372932962,1752813051803,-460.0,0.00017534,2]
[372932963,1752813051813,-460.0,0.00017534,2]
[372932964,1752813051822,-460.0,0.00017534,2]
[372932965,1752813051831,-460.0,0.00017534,2]
[372932966,1752813051840,-469.69068942,0.00017534,2]
[372932967,1752813051850,-460.0,0.00017534,2]
[372932968,1752813051860,-460.0,0.00017534,2]
[372932969,1752813051869,-460.0,0.00017534,2]
[372932970,1752813051879,-460.0,0.00017534,2]
[372932971,1752813051888,-460.0,0.00017534,2]
[372932972,1752813051898,-460.0,0.00017534,2]
[372932973,1752813051907,-513.5,0.00017534,2]
[372932974,1752813051916,-567.04,0.00017534,2]
[372932975,1752813051925,-460.0,0.00017534,2]
[372932976,1752813051935,-460.0,0.00017534,2]
[372932977,1752813051945,-306.67290991,0.00017534,2]
[372932978,1752813051954,-460.0,0.00017534,2]
[372932979,1752813051964,-460.0,0.00017534,2]
[372932980,1752813051973,-460.0,0.00017534,2]
[372932981,1752813051982,-460.0,0.00017534,2]
[372932982,1752813051992,-460.0,0.00017534,2]
[372932983,1752813052001,-460.0,0.00017534,2]
[372932984,1752813052010,-460.0,0.00017534,2]
[372932985,1752813052019,-460.0,0.00017534,2]
[372932986,1752813052029,-460.0,0.00017534,2]
[372932987,1752813052038,-777.35,0.00017534,2]
[372932988,1752813052047,-558.88,0.00017534,2]
[372932989,1752813052057,-465.99628386,0.00017534,2]
[372932990,1752813052066,-460.0,0.00017534,2]
[372932991,1752813052076,-460.0,0.00017534,2]
[372932992,1752813052085,-275.69788048,0.00017534,2]
[372932993,1752813052094,-465.59396086,0.00017534,2]
[372932994,1752813052103,-460.0,0.00017534,2]
[372932995,1752813052113,-460.0,0.00017534,2]
[372932996,1752813052122,-460.0,0.00017534,2]
[372932997,1752813052132,-460.0,0.00017534,2]
[372932998,1752813052142,-460.0,0.00017534,2]
[372932999,1752813052151,-460.0,0.00017534,2]
[372933000,1752813052160,-460.0,0.00017534,2]
[372933001,1752813052170,-460.0,0.00017534,2]
[372933002,1752813052180,-447.1396832,0.00017534,2]
[372933003,1752813052189,-460.0,0.00017534,2]
[372933004,1752813052200,-787.34,0.00017534,2]
[372933005,1752813052209,-460.0,0.00017534,2]
[372933006,1752813052219,-460.0,0.00017534,2]
[372933007,1752813052228,-460.0,0.00017534,2]
[372933008,1752813052238,-1702.85,0.00017534,2]
[372933009,1752813052247,-460.0,0.00017534,2]
[372933010,1752813052256,-460.0,0.00017534,2]
[372933011,1752813052266,-460.0,0.00017534,2]
[372933012,1752813052275,-547.71,0.00017534,2]
[372933013,1752813052284,-555.77,0.00017534,2]
[372933014,1752813052294,-460.0,0.00017534,2]
[372933015,1752813052308,-460.0,0.00017534,2]
[372933016,1752813052318,-460.0,0.00017534,2]
[372933017,1752813052327,-460.0,0.00017534,2]
[372933018,1752813052337,-460.0,0.00017534,2]
[372933019,1752813052347,-535.54,0.00017534,2]
[372933020,1752813052356,-460.0,0.00017534,2]
[372933021,1752813052366,-460.0,0.00017534,2]
[372933022,1752813052376,-460.0,0.00017534,2]
[372933023,1752813052386,-1010.83,0.00017534,2]
[372933024,1752813052395,-460.0,0.00017534,2]
[372933025,1752813052405,-460.0,0.00017534,2]
[372933026,1752813052420,-460.0,0.00017534,2]
[372933027,1752813052429,-460.0,0.00017534,2]
[372933028,1752813052439,-560.37,0.00017534,2]
[372933029,1752813052451,-460.0,0.00017534,2]
[372933030,1752813052461,-477.94787217,0.00017534,2]
[372933031,1752813052471,-460.0,0.00017534,2]
[372933032,1752813052480,-2738.5,0.00017534,2]
[372933033,1752813052490,-460.0,0.00017534,2]
[372933034,1752813052500,-460.0,0.00017534,2]
[372933035,1752813052510,-466.73409255,0.00017534,2]
[372933036,1752813052519,-525.79,0.00017534,2]
[372933037,1752813052528,-460.0,0.00017534,2]
[372933038,1752813052538,-536.66,0.00017534,2]
[372933039,1752813052547,-460.0,0.00017534,2]
[372933040,1752813052557,-2535.91,0.00017534,2]
[372933041,1752813052566,-460.0,0.00017534,2]
[372933042,1752813052576,-3286.51,0.00017534,2]
[372933043,1752813052586,-513.61,0.00017534,2]
[372933044,1752813052596,-479.16,0.00017534,2]
[372933045,1752813052606,-460.0,0.00017534,2]
[372933046,1752813052616,-852.12,0.00017534,2]
[372933047,1752813052625,-1073.62,0.00017534,2]
[372933048,1752813052634,-460.0,0.00017534,2]
[372933049,1752813052644,-1477.28,0.00017534,2]
[372933050,1752813052653,-774.58,0.00017534,2]
[372933051,1752813052663,-460.0,0.00017534,2]
[372933052,1752813052673,-460.0,0.00017534,2]
[372933053,1752813052683,-638.51,0.00017534,2]
[372933054,1752813052693,-571.08,0.00017534,2]
[372933055,1752813052703,-1916.82,0.00017534,2]
[372933056,1752813052713,-460.0,0.00017534,2]
[372933057,1752813052821,-1136.96,0.00017534,2]
[372933058,1752813052831,-460.0,0.00017534,2]
[372933059,1752813052841,-313.03793765,0.00017534,2]
[372933060,1752813052850,-460.0,0.00017534,2]
[372933061,1752813052860,-460.0,0.00017534,2]
[372933062,1752813052870,-646.05,0.00017534,2]
[372933063,1752813052879,-460.0,0.00017534,2]
[372933064,1752813052889,-460.0,0.00017534,2]
[372933065,1752813052898,-690.82,0.00017534,2]
[372933066,1752813052909,-316.39233764,0.00017534,2]
[372933067,1752813052918,-460.0,0.00017534,2]
[372933068,1752813052928,-460.0,0.00017534,2]
[372933069,1752813052937,-2756.34,0.00017534,2]
[372933070,1752813052947,-460.0,0.00017534,2]
[372933071,1752813052956,-1040.86,0.00017534,2]
[372933072,1752813052966,-460.0,0.00017534,2]
[372933073,1752813052975,-460.0,0.00017534,2]
[372933074,1752813052985,-460.0,0.00017534,2]
[372933075,1752813052994,-460.0,0.00017534,2]
[372933076,1752813053003,-467.14,0.00017534,2]
[372933077,1752813053012,-460.0,0.00017534,2]
[372933078,1752813053022,-4760.88,0.00017534,2]
[372933079,1752813053032,-472.26,0.00017534,2]
[372933080,1752813053041,-486.44065873,0.00017534,2]
[372933081,1752813053050,-460.0,0.00017534,2]
[372933082,1752813053059,-570.06,0.00017534,2]
[372933083,1752813053069,-4406.26,0.00017534,2]
[372933084,1752813053079,-508.35,0.00017534,2]
[372933085,1752813053088,-472.91,0.00017534,2]
[372933086,1752813053098,-460.0,0.00017534,2]
[372933087,1752813053107,-460.0,0.00017534,2]
[372933088,1752813053117,-856.08,0.00017534,2]
[372933089,1752813053126,-487.92,0.00017534,2]
[372933090,1752813053136,-460.0,0.00017534,2]
[372933091,1752813053145,-460.0,0.00017534,2]
[372933092,1752813053155,-190.64928973,0.00017534,2]
[372933093,1752813053165,-1340.97,0.00017534,2]
[372933094,1752813053174,-582.41,0.00017534,2]
[372933095,1752813053184,-2433.29,0.00017534,2]
[372933096,1752813053194,-1705.16,0.00017534,2]
[372933097,1752813053203,-460.0,0.00017534,2]
[372933098,1752813053214,-460.0,0.00017534,2]
[372933099,1752813053224,-460.0,0.00017534,2]
[372933100,1752813053234,-1722.56,0.00017534,2]
[372933101,1752813053244,-460.0,0.00017534,2]
[372933102,1752813053254,-580.70053603,0.00017534,2]
[372933103,1752813053264,-460.0,0.00017534,2]
[372933104,1752813053273,-465.60249027,0.00017534,2]